[Event "Late-Titled-Tuesday-Blitz-October-17-2023"]
[Site "Chess.com"]
[Date "2023.10.17"]
[Round "1"]
[White "JG-17"]
[Black "jcibarra"]
[Result "0-1"]
[WhiteElo "2482"]
[BlackElo "2901"]
[TimeControl "180+1"]
[EndTime "14:07:13 PDT"]
[Termination "jcibarra won by resignation"]

1. e4 {[%clk 0:03:00.9]} 1... c5 {[%clk 0:02:59.8]} 2. Nc3 {[%clk 0:02:59.8]}
2... a6 {[%clk 0:02:58.9]} 3. a4 {[%clk 0:02:58.7]} 3... Nc6 {[%clk 0:02:59]} 4.
g3 {[%clk 0:02:59.2]} 4... e6 {[%clk 0:02:58.5]} 5. Bg2 {[%clk 0:02:59.6]} 5...
Nf6 {[%clk 0:02:59.1]} 6. d3 {[%clk 0:02:57.1]} 6... d5 {[%clk 0:02:59.7]} 7.
Nf3 {[%clk 0:02:52.6]} 7... dxe4 {[%clk 0:02:57]} 8. Nxe4 {[%clk 0:02:47.7]}
8... Be7 {[%clk 0:02:54.4]} 9. O-O {[%clk 0:02:45.2]} 9... O-O {[%clk
0:02:54.2]} 10. Bg5 {[%clk 0:02:41.9]} 10... b6 {[%clk 0:02:45.6]} 11. Re1
{[%clk 0:02:21.1]} 11... Nd5 {[%clk 0:02:31.2]} 12. Bxe7 {[%clk 0:02:19.4]}
12... Ndxe7 {[%clk 0:02:28.6]} 13. Qe2 {[%clk 0:02:15.5]} 13... Bb7 {[%clk
0:02:24.4]} 14. h4 {[%clk 0:02:12.8]} 14... Nf5 {[%clk 0:02:24]} 15. c3 {[%clk
0:02:11.4]} 15... Qc7 {[%clk 0:02:20]} 16. Rad1 {[%clk 0:01:55.9]} 16... Rad8
{[%clk 0:02:18.9]} 17. h5 {[%clk 0:01:49.6]} 17... h6 {[%clk 0:02:18.6]} 18. Nh2
{[%clk 0:01:31.6]} 18... Nfe7 {[%clk 0:02:15.7]} 19. g4 {[%clk 0:01:26.7]} 19...
Nd5 {[%clk 0:02:05.5]} 20. Qf1 {[%clk 0:01:21.4]} 20... Nf4 {[%clk 0:02:05.1]}
21. Bh1 {[%clk 0:01:01.9]} 21... Ne5 {[%clk 0:02:02.6]} 22. d4 {[%clk
0:00:51.6]} 22... cxd4 {[%clk 0:01:50.1]} 23. cxd4 {[%clk 0:00:51.7]} 23... Nc6
{[%clk 0:01:49.5]} 24. Nf3 {[%clk 0:00:47.1]} 24... f5 {[%clk 0:01:46.8]} 25.
gxf5 {[%clk 0:00:45.6]} 25... exf5 {[%clk 0:01:39.4]} 26. Ng3 {[%clk 0:00:45.7]}
26... Nb4 {[%clk 0:01:37.5]} 27. Rc1 {[%clk 0:00:29.9]} 27... Qd6 {[%clk
0:01:32.3]} 28. Red1 {[%clk 0:00:21]} 28... Kh7 {[%clk 0:01:25.8]} 29. Ne5
{[%clk 0:00:20.5]} 29... Bxh1 {[%clk 0:01:21.9]} 30. Kxh1 {[%clk 0:00:21.4]}
30... Qf6 {[%clk 0:01:14.6]} 31. Qg1 {[%clk 0:00:18.6]} 31... Rd5 {[%clk
0:00:51.4]} 32. Qh2 {[%clk 0:00:17.9]} 32... Rfd8 {[%clk 0:00:51.4]} 33. Rc4
{[%clk 0:00:16.1]} 33... Qxe5 {[%clk 0:00:43.8]} 34. Rxb4 {[%clk 0:00:16.3]}
34... Rxd4 {[%clk 0:00:37.9]} 35. Rbxd4 {[%clk 0:00:16.2]} 35... Rxd4 {[%clk
0:00:38.8]} 36. Rxd4 {[%clk 0:00:15.7]} 36... Qxd4 {[%clk 0:00:39.7]} 37. Qg1
{[%clk 0:00:08.2]} 37... Nh3 {[%clk 0:00:34.4]} 38. Qb1 {[%clk 0:00:05.1]} 38...
Nxf2+ {[%clk 0:00:30.5]} 39. Kg2 {[%clk 0:00:05.4]} 39... Ne4 {[%clk 0:00:24.5]}
40. Nxf5 {[%clk 0:00:03.4]} 40... Qf2+ {[%clk 0:00:24.3]} 41. Kh1 {[%clk
0:00:01.8]} 41... Qxf5 {[%clk 0:00:23.3]} 0-1

[Event "Late-Titled-Tuesday-Blitz-October-17-2023"]
[Site "Chess.com"]
[Date "2023.10.17"]
[Round "1"]
[White "Byniolus"]
[Black "Real_taiatai"]
[Result "1/2-1/2"]
[WhiteElo "2782"]
[BlackElo "2432"]
[TimeControl "180+1"]
[EndTime "14:07:13 PDT"]
[Termination "Game drawn by repetition"]

1. d4 {[%clk 0:03:00.9]} 1... Nf6 {[%clk 0:02:59.6]} 2. Nf3 {[%clk 0:03:01.2]}
2... d5 {[%clk 0:02:59.2]} 3. Bf4 {[%clk 0:03:01.4]} 3... e6 {[%clk 0:02:56.7]}
4. e3 {[%clk 0:03:01]} 4... Bd6 {[%clk 0:02:57.2]} 5. Bg3 {[%clk 0:03:01.4]}
5... c5 {[%clk 0:02:57.6]} 6. c3 {[%clk 0:03:01.4]} 6... O-O {[%clk 0:02:57.7]}
7. Nbd2 {[%clk 0:03:01.8]} 7... Qc7 {[%clk 0:02:58.2]} 8. Be2 {[%clk 0:03:02.2]}
8... Nbd7 {[%clk 0:02:58.4]} 9. c4 {[%clk 0:03:02.7]} 9... b6 {[%clk 0:02:53.5]}
10. Rc1 {[%clk 0:03:02.3]} 10... Bb7 {[%clk 0:02:44.9]} 11. dxc5 {[%clk
0:03:00.8]} 11... Nxc5 {[%clk 0:02:42.3]} 12. b4 {[%clk 0:02:35.7]} 12... Nce4
{[%clk 0:02:33.3]} 13. cxd5 {[%clk 0:02:32.6]} 13... Qe7 {[%clk 0:02:16.6]} 14.
Bxd6 {[%clk 0:02:26]} 14... Qxd6 {[%clk 0:02:16.2]} 15. dxe6 {[%clk 0:02:24.3]}
15... Rad8 {[%clk 0:02:01.1]} 16. exf7+ {[%clk 0:02:25.2]} 16... Rxf7 {[%clk
0:02:01.1]} 17. Nxe4 {[%clk 0:02:11.6]} 17... Qxb4+ {[%clk 0:01:21.4]} 18. Ned2
{[%clk 0:02:01.5]} 18... Ne4 {[%clk 0:01:19.2]} 19. Qb3 {[%clk 0:01:38.3]} 19...
Qa5 {[%clk 0:01:13.4]} 20. O-O {[%clk 0:01:21.2]} 20... Nxd2 {[%clk 0:01:13.1]}
21. Nxd2 {[%clk 0:01:19.8]} 21... Rxd2 {[%clk 0:00:41.4]} 22. Bc4 {[%clk
0:01:14.2]} 22... Bd5 {[%clk 0:00:41.7]} 23. Bxd5 {[%clk 0:00:50.7]} 23... Qxd5
{[%clk 0:00:40.3]} 24. Qxd5 {[%clk 0:00:35.6]} 24... Rxd5 {[%clk 0:00:39]} 25.
Rfd1 {[%clk 0:00:34.6]} 25... Rc7 {[%clk 0:00:36.9]} 26. g4 {[%clk 0:00:28.5]}
26... Rxd1+ {[%clk 0:00:27.8]} 27. Rxd1 {[%clk 0:00:29.4]} 27... Rc2 {[%clk
0:00:27.9]} 28. Rd8+ {[%clk 0:00:28.7]} 28... Kf7 {[%clk 0:00:26.2]} 29. Rd7+
{[%clk 0:00:29.6]} 29... Kf6 {[%clk 0:00:25.6]} 30. Rxa7 {[%clk 0:00:29.8]}
30... h6 {[%clk 0:00:22.8]} 31. Kg2 {[%clk 0:00:25.9]} 31... g6 {[%clk
0:00:22.2]} 32. h4 {[%clk 0:00:25.6]} 32... h5 {[%clk 0:00:20.7]} 33. g5+ {[%clk
0:00:22.8]} 33... Ke5 {[%clk 0:00:20.9]} 34. Kg3 {[%clk 0:00:17.8]} 34... Rc4
{[%clk 0:00:20.7]} 35. f3 {[%clk 0:00:18.3]} 35... Rc3 {[%clk 0:00:20.6]} 36. e4
{[%clk 0:00:18.8]} 36... Kd4 {[%clk 0:00:20.5]} 37. Rd7+ {[%clk 0:00:16.3]}
37... Ke3 {[%clk 0:00:20.6]} 38. Rd6 {[%clk 0:00:15.9]} 38... Rc1 {[%clk
0:00:20.7]} 39. Rxg6 {[%clk 0:00:13.3]} 39... Rg1+ {[%clk 0:00:21.3]} 40. Kh2
{[%clk 0:00:13.6]} 40... Kf2 {[%clk 0:00:21.9]} 41. Rxb6 {[%clk 0:00:08.9]}
41... Rg2+ {[%clk 0:00:22.2]} 42. Kh1 {[%clk 0:00:09.6]} 42... Rg1+ {[%clk
0:00:22.3]} 43. Kh2 {[%clk 0:00:10.3]} 43... Rg2+ {[%clk 0:00:22.6]} 44. Kh1
{[%clk 0:00:10.3]} 44... Rg1+ {[%clk 0:00:19.9]} 45. Kh2 {[%clk 0:00:10.8]}
1/2-1/2

[Event "Late-Titled-Tuesday-Blitz-October-17-2023"]
[Site "Chess.com"]
[Date "2023.10.17"]
[Round "1"]
[White "PushingpawnsNYC"]
[Black "PositionalPanther"]
[Result "1-0"]
[WhiteElo "2329"]
[BlackElo "2599"]
[TimeControl "180+1"]
[EndTime "14:07:17 PDT"]
[Termination "PushingpawnsNYC won by resignation"]

1. e4 {[%clk 0:03:00.9]} 1... e6 {[%clk 0:03:00.9]} 2. d4 {[%clk 0:03:00.7]}
2... d5 {[%clk 0:03:01.4]} 3. Bd3 {[%clk 0:03:01.4]} 3... dxe4 {[%clk
0:03:00.6]} 4. Bxe4 {[%clk 0:03:02.3]} 4... Nf6 {[%clk 0:03:01]} 5. Bf3 {[%clk
0:03:02.9]} 5... c5 {[%clk 0:03:01.3]} 6. Ne2 {[%clk 0:03:02.9]} 6... Be7 {[%clk
0:03:01.6]} 7. O-O {[%clk 0:03:02.3]} 7... O-O {[%clk 0:03:02]} 8. Be3 {[%clk
0:02:59.4]} 8... cxd4 {[%clk 0:03:00.2]} 9. Qxd4 {[%clk 0:02:58.7]} 9... Qxd4
{[%clk 0:02:51.5]} 10. Nxd4 {[%clk 0:02:57.9]} 10... e5 {[%clk 0:02:50.2]} 11.
Nb5 {[%clk 0:02:56.6]} 11... Nc6 {[%clk 0:02:24.1]} 12. N1c3 {[%clk 0:02:42.3]}
12... Bf5 {[%clk 0:02:23.3]} 13. Nc7 {[%clk 0:02:25.6]} 13... Rac8 {[%clk
0:02:12.5]} 14. N7d5 {[%clk 0:02:22.2]} 14... Nxd5 {[%clk 0:02:06.3]} 15. Nxd5
{[%clk 0:02:21.5]} 15... Bd8 {[%clk 0:01:39.8]} 16. c3 {[%clk 0:02:14.9]} 16...
e4 {[%clk 0:01:39.3]} 17. Be2 {[%clk 0:02:13.7]} 17... a6 {[%clk 0:01:23]} 18.
Rfd1 {[%clk 0:02:12.7]} 18... Ne5 {[%clk 0:01:17.4]} 19. Bd4 {[%clk 0:02:02.7]}
19... Nc4 {[%clk 0:00:56.3]} 20. b3 {[%clk 0:01:56.5]} 20... Na3 {[%clk
0:00:52.5]} 21. Ne3 {[%clk 0:01:56.1]} 21... Be6 {[%clk 0:00:49]} 22. g4 {[%clk
0:01:51]} 22... Bg5 {[%clk 0:00:47.7]} 23. Rac1 {[%clk 0:01:44.5]} 23... Rfd8
{[%clk 0:00:45.4]} 24. Kg2 {[%clk 0:01:40.8]} 24... h6 {[%clk 0:00:38.6]} 25.
Kg3 {[%clk 0:01:39.8]} 25... Bxe3 {[%clk 0:00:37.7]} 26. fxe3 {[%clk 0:01:35.1]}
26... Nb5 {[%clk 0:00:34]} 27. h4 {[%clk 0:01:21.9]} 27... Nxd4 {[%clk
0:00:33.6]} 28. cxd4 {[%clk 0:01:17.9]} 28... Bd5 {[%clk 0:00:26.7]} 29. Kf4
{[%clk 0:01:17]} 29... b5 {[%clk 0:00:25.5]} 30. g5 {[%clk 0:01:11.9]} 30...
hxg5+ {[%clk 0:00:25.2]} 31. hxg5 {[%clk 0:01:12.8]} 31... f6 {[%clk 0:00:25.7]}
32. g6 {[%clk 0:01:10]} 32... Kf8 {[%clk 0:00:25.4]} 33. Bg4 {[%clk 0:01:09.6]}
33... Rxc1 {[%clk 0:00:23.7]} 34. Rxc1 {[%clk 0:01:10.5]} 34... Ke7 {[%clk
0:00:15.3]} 35. Rc7+ {[%clk 0:01:09.3]} 35... Kd6 {[%clk 0:00:15.9]} 36. Rxg7
{[%clk 0:01:09]} 36... a5 {[%clk 0:00:13.9]} 37. Ra7 {[%clk 0:01:08.2]} 37... a4
{[%clk 0:00:13.7]} 38. bxa4 {[%clk 0:01:07.1]} 38... b4 {[%clk 0:00:13.9]} 39.
Ra6+ {[%clk 0:00:47.1]} 39... Ke7 {[%clk 0:00:13.4]} 40. Rb6 {[%clk 0:00:46.8]}
40... Rg8 {[%clk 0:00:09.8]} 41. Bf5 {[%clk 0:00:45.6]} 41... Bxa2 {[%clk
0:00:09.3]} 42. Rb7+ {[%clk 0:00:42.8]} 42... Kd6 {[%clk 0:00:09.5]} 43. Rxb4
{[%clk 0:00:43]} 43... Ra8 {[%clk 0:00:09.5]} 44. Rb6+ {[%clk 0:00:40]} 44...
Kc7 {[%clk 0:00:09.4]} 45. Rxf6 {[%clk 0:00:39.8]} 45... Rxa4 {[%clk 0:00:08.5]}
46. g7 {[%clk 0:00:38.5]} 46... Ra8 {[%clk 0:00:07.4]} 47. Rf8 {[%clk
0:00:38.6]} 47... Rb8 {[%clk 0:00:07.2]} 48. Bxe4 {[%clk 0:00:37]} 48... Rd8
{[%clk 0:00:06.1]} 49. d5 {[%clk 0:00:36.5]} 1-0

[Event "Late-Titled-Tuesday-Blitz-October-17-2023"]
[Site "Chess.com"]
[Date "2023.10.17"]
[Round "1"]
[White "Freeeeeeeeeeeeeeeeee"]
[Black "dosto07"]
[Result "0-1"]
[WhiteElo "1978"]
[BlackElo "2523"]
[TimeControl "180+1"]
[EndTime "14:07:18 PDT"]
[Termination "dosto07 won by resignation"]

1. d4 {[%clk 0:02:56.2]} 1... d5 {[%clk 0:02:59.4]} 2. Nf3 {[%clk 0:02:14.4]}
2... Nf6 {[%clk 0:02:49.9]} 3. Bf4 {[%clk 0:02:07.5]} 3... c5 {[%clk 0:02:49.1]}
4. e3 {[%clk 0:02:06.3]} 4... Nc6 {[%clk 0:02:48]} 5. c3 {[%clk 0:02:05]} 5...
Qb6 {[%clk 0:02:44.4]} 6. Qb3 {[%clk 0:02:04.1]} 6... c4 {[%clk 0:02:44.8]} 7.
Qc2 {[%clk 0:01:53.6]} 7... Bf5 {[%clk 0:02:43.6]} 8. Qc1 {[%clk 0:01:46.6]}
8... e6 {[%clk 0:02:43.3]} 9. Nbd2 {[%clk 0:01:45]} 9... h6 {[%clk 0:02:36.4]}
10. h3 {[%clk 0:01:43.1]} 10... Qd8 {[%clk 0:02:34.9]} 11. Be2 {[%clk
0:01:41.8]} 11... Be7 {[%clk 0:02:35.2]} 12. O-O {[%clk 0:01:41.6]} 12... O-O
{[%clk 0:02:35.3]} 13. Ne5 {[%clk 0:01:34.8]} 13... Nxe5 {[%clk 0:02:34.3]} 14.
Bxe5 {[%clk 0:01:26.2]} 14... b5 {[%clk 0:02:34.1]} 15. a3 {[%clk 0:01:20]}
15... a5 {[%clk 0:02:33.5]} 16. Bd1 {[%clk 0:01:11.9]} 16... Nd7 {[%clk
0:02:32.6]} 17. Bh2 {[%clk 0:01:11.5]} 17... b4 {[%clk 0:02:30.9]} 18. axb4
{[%clk 0:01:11.9]} 18... axb4 {[%clk 0:02:31]} 19. Rxa8 {[%clk 0:01:12.7]} 19...
Qxa8 {[%clk 0:02:31]} 20. Bc2 {[%clk 0:01:12.1]} 20... Bxc2 {[%clk 0:02:21.1]}
21. Qxc2 {[%clk 0:01:08.6]} 21... b3 {[%clk 0:02:20]} 22. Qb1 {[%clk 0:01:04.2]}
22... Nf6 {[%clk 0:02:00.2]} 23. Re1 {[%clk 0:00:53.2]} 23... Ne4 {[%clk
0:01:46.3]} 24. Nf1 {[%clk 0:00:28.7]} 24... Bh4 {[%clk 0:01:28.4]} 25. g3
{[%clk 0:00:23.1]} 25... Be7 {[%clk 0:01:27.7]} 26. f3 {[%clk 0:00:23.6]} 26...
Nf6 {[%clk 0:01:14.8]} 27. Nd2 {[%clk 0:00:21.3]} 27... Qa7 {[%clk 0:01:09.3]}
28. e4 {[%clk 0:00:17.6]} 28... e5 {[%clk 0:01:04.6]} 29. Kh1 {[%clk 0:00:07.9]}
29... exd4 {[%clk 0:01:01.1]} 30. Bg1 {[%clk 0:00:08.1]} 30... Bc5 {[%clk
0:00:59.3]} 31. cxd4 {[%clk 0:00:05]} 31... Bxd4 {[%clk 0:00:58.3]} 32. exd5
{[%clk 0:00:05.7]} 32... Bxg1 {[%clk 0:00:53.7]} 33. Rxg1 {[%clk 0:00:06.6]}
33... Qd4 {[%clk 0:00:48.2]} 34. Ne4 {[%clk 0:00:05.4]} 34... Qxd5 {[%clk
0:00:39.3]} 35. Nxf6+ {[%clk 0:00:05.5]} 35... gxf6 {[%clk 0:00:39.4]} 36. Qd1
{[%clk 0:00:04.2]} 36... Qe6 {[%clk 0:00:30.5]} 37. Rg2 {[%clk 0:00:04.6]} 37...
Re8 {[%clk 0:00:27.1]} 38. Qd2 {[%clk 0:00:05.1]} 38... Kg7 {[%clk 0:00:21.9]}
39. Kh2 {[%clk 0:00:05.2]} 39... Qe5 {[%clk 0:00:19]} 40. f4 {[%clk 0:00:04]}
40... Qe4 {[%clk 0:00:18.4]} 41. Qc3 {[%clk 0:00:04.3]} 41... Qd3 {[%clk
0:00:17.6]} 42. Qxd3 {[%clk 0:00:03.8]} 42... cxd3 {[%clk 0:00:18]} 43. Rd2
{[%clk 0:00:04.4]} 43... Re2+ {[%clk 0:00:17.9]} 0-1

[Event "Late-Titled-Tuesday-Blitz-October-17-2023"]
[Site "Chess.com"]
[Date "2023.10.17"]
[Round "1"]
[White "Payyappat"]
[Black "vladislavkovalev"]
[Result "0-1"]
[WhiteElo "2463"]
[BlackElo "2865"]
[TimeControl "180+1"]
[EndTime "14:07:19 PDT"]
[Termination "vladislavkovalev won by checkmate"]

1. e4 {[%clk 0:02:59.7]} 1... e5 {[%clk 0:03:00.1]} 2. Nf3 {[%clk 0:02:58.7]}
2... Nc6 {[%clk 0:03:00.7]} 3. Bc4 {[%clk 0:02:57]} 3... Nf6 {[%clk 0:03:00.7]}
4. d4 {[%clk 0:02:55]} 4... exd4 {[%clk 0:02:59.5]} 5. e5 {[%clk 0:02:53.1]}
5... d5 {[%clk 0:03:00]} 6. Bb5 {[%clk 0:02:52.5]} 6... Nd7 {[%clk 0:03:00.7]}
7. O-O {[%clk 0:02:48.9]} 7... Be7 {[%clk 0:03:01.1]} 8. Bxc6 {[%clk 0:02:44.6]}
8... bxc6 {[%clk 0:03:02]} 9. Nxd4 {[%clk 0:02:44.9]} 9... Nb8 {[%clk
0:03:02.7]} 10. f4 {[%clk 0:02:43]} 10... c5 {[%clk 0:03:02.7]} 11. Nb3 {[%clk
0:02:39.3]} 11... Bf5 {[%clk 0:02:57.9]} 12. Nc3 {[%clk 0:02:35.4]} 12... c6
{[%clk 0:02:48.2]} 13. g4 {[%clk 0:02:23.4]} 13... Bc8 {[%clk 0:02:46]} 14. f5
{[%clk 0:02:19.7]} 14... h5 {[%clk 0:02:45.7]} 15. f6 {[%clk 0:02:11.9]} 15...
gxf6 {[%clk 0:02:42.7]} 16. exf6 {[%clk 0:02:12.8]} 16... Bxf6 {[%clk
0:02:15.4]} 17. Qf3 {[%clk 0:02:11.1]} 17... c4 {[%clk 0:01:30.3]} 18. Bg5
{[%clk 0:01:22.1]} 18... Qb6+ {[%clk 0:00:50.1]} 19. Be3 {[%clk 0:01:19.2]}
19... hxg4 {[%clk 0:00:50.3]} 20. Qf2 {[%clk 0:00:40.7]} 20... Qc7 {[%clk
0:00:40.3]} 21. Bf4 {[%clk 0:00:27.4]} 21... Qe7 {[%clk 0:00:36.7]} 22. Rae1
{[%clk 0:00:19]} 22... Be6 {[%clk 0:00:37.1]} 23. Nc5 {[%clk 0:00:18.9]} 23...
Nd7 {[%clk 0:00:33.8]} 24. Nb7 {[%clk 0:00:12.7]} 24... Qb4 {[%clk 0:00:17.8]}
25. Nd6+ {[%clk 0:00:09.4]} 25... Kd8 {[%clk 0:00:13.4]} 26. Re5 {[%clk
0:00:07.3]} 26... Nxe5 {[%clk 0:00:11.2]} 27. Bxe5 {[%clk 0:00:04]} 27... Bxe5
{[%clk 0:00:12.1]} 28. Nxf7+ {[%clk 0:00:04]} 28... Bxf7 {[%clk 0:00:12.8]} 29.
Qxf7 {[%clk 0:00:04.3]} 29... Qc5+ {[%clk 0:00:13.1]} 30. Rf2 {[%clk 0:00:03.4]}
30... Bd4 {[%clk 0:00:09.2]} 31. Kf1 {[%clk 0:00:01.2]} 31... Bxf2 {[%clk
0:00:08.7]} 32. Qf6+ {[%clk 0:00:01.6]} 32... Kc7 {[%clk 0:00:09.4]} 33. Qf7+
{[%clk 0:00:02]} 33... Kc8 {[%clk 0:00:08.2]} 34. Qe6+ {[%clk 0:00:02.2]} 34...
Kb7 {[%clk 0:00:08.9]} 35. Qd7+ {[%clk 0:00:02.5]} 35... Ka6 {[%clk 0:00:09.6]}
36. Qc7 {[%clk 0:00:02.4]} 36... Bg1 {[%clk 0:00:09.4]} 37. b4 {[%clk
0:00:02.5]} 37... Qf2# {[%clk 0:00:09.4]} 0-1

[Event "Late-Titled-Tuesday-Blitz-October-17-2023"]
[Site "Chess.com"]
[Date "2023.10.17"]
[Round "1"]
[White "mind1mover"]
[Black "Mikhal867"]
[Result "1-0"]
[WhiteElo "2850"]
[BlackElo "2455"]
[TimeControl "180+1"]
[EndTime "14:07:21 PDT"]
[Termination "mind1mover won by checkmate"]

1. Nf3 {[%clk 0:03:00.9]} 1... c5 {[%clk 0:02:58.9]} 2. b3 {[%clk 0:03:01.2]}
2... Nc6 {[%clk 0:02:57.7]} 3. Bb2 {[%clk 0:03:01.8]} 3... d6 {[%clk 0:02:53.4]}
4. e3 {[%clk 0:03:01.3]} 4... e5 {[%clk 0:02:52]} 5. d4 {[%clk 0:02:51.6]} 5...
cxd4 {[%clk 0:02:48.5]} 6. exd4 {[%clk 0:02:52.5]} 6... e4 {[%clk 0:02:48.7]} 7.
Nfd2 {[%clk 0:02:53]} 7... f5 {[%clk 0:02:42.3]} 8. c4 {[%clk 0:02:52.8]} 8...
Nf6 {[%clk 0:02:41.4]} 9. Nc3 {[%clk 0:02:46]} 9... Be7 {[%clk 0:02:39.6]} 10.
d5 {[%clk 0:02:41.1]} 10... Ne5 {[%clk 0:02:30.1]} 11. Be2 {[%clk 0:02:41.1]}
11... O-O {[%clk 0:02:16.7]} 12. O-O {[%clk 0:02:41.4]} 12... Nfg4 {[%clk
0:02:08.1]} 13. h3 {[%clk 0:02:32.9]} 13... Nh6 {[%clk 0:02:07.9]} 14. f4 {[%clk
0:02:28.4]} 14... Nd7 {[%clk 0:01:48.7]} 15. Qc2 {[%clk 0:02:21.4]} 15... g5
{[%clk 0:01:45.9]} 16. Nb5 {[%clk 0:02:08.8]} 16... gxf4 {[%clk 0:01:00.7]} 17.
Rxf4 {[%clk 0:02:09.7]} 17... Bg5 {[%clk 0:01:00.2]} 18. Qc3 {[%clk 0:01:54.5]}
18... Ne5 {[%clk 0:00:53.2]} 19. Qg3 {[%clk 0:01:52]} 19... Ng6 {[%clk 0:00:48]}
20. Raf1 {[%clk 0:01:41.5]} 20... Bxf4 {[%clk 0:00:41.1]} 21. Rxf4 {[%clk
0:01:41.3]} 21... a6 {[%clk 0:00:38.7]} 22. Nd4 {[%clk 0:01:41.5]} 22... Rf7
{[%clk 0:00:32.1]} 23. h4 {[%clk 0:01:21.7]} 23... Kf8 {[%clk 0:00:29.6]} 24.
Ne6+ {[%clk 0:01:11.1]} 24... Bxe6 {[%clk 0:00:29]} 25. dxe6 {[%clk 0:01:12]}
25... Nxf4 {[%clk 0:00:29.1]} 26. Qxf4 {[%clk 0:01:09.4]} 26... Rf6 {[%clk
0:00:27.6]} 27. Nxe4 {[%clk 0:00:42.8]} 27... Rxe6 {[%clk 0:00:27.7]} 28. Bf3
{[%clk 0:00:43.3]} 28... Nf7 {[%clk 0:00:25.8]} 29. Qxf5 {[%clk 0:00:39]} 29...
Qe7 {[%clk 0:00:24.5]} 30. Qxh7 {[%clk 0:00:35.3]} 30... Rxe4 {[%clk 0:00:18.7]}
31. Bxe4 {[%clk 0:00:31.6]} 31... Nd8 {[%clk 0:00:15.2]} 32. Qh8+ {[%clk
0:00:30.4]} 32... Kf7 {[%clk 0:00:15.1]} 33. Bd5+ {[%clk 0:00:25.6]} 33... Kg6
{[%clk 0:00:15]} 34. Qg8+ {[%clk 0:00:22.7]} 34... Kf5 {[%clk 0:00:14.4]} 35.
Qg3 {[%clk 0:00:08.6]} 35... Ne6 {[%clk 0:00:11.6]} 36. Qf3+ {[%clk 0:00:07.2]}
36... Kg6 {[%clk 0:00:11.9]} 37. Qg4+ {[%clk 0:00:07.1]} 37... Kf7 {[%clk
0:00:11.2]} 38. Qf5+ {[%clk 0:00:07.3]} 38... Ke8 {[%clk 0:00:11.5]} 39. Bxe6
{[%clk 0:00:07.1]} 39... Qxh4 {[%clk 0:00:10.1]} 40. Qf7+ {[%clk 0:00:06.5]}
40... Kd8 {[%clk 0:00:10.5]} 41. Qd7# {[%clk 0:00:07.4]} 1-0

[Event "Late-Titled-Tuesday-Blitz-October-17-2023"]
[Site "Chess.com"]
[Date "2023.10.17"]
[Round "1"]
[White "gmcorrales"]
[Black "Cirky"]
[Result "1-0"]
[WhiteElo "2861"]
[BlackElo "2461"]
[TimeControl "180+1"]
[EndTime "14:07:22 PDT"]
[Termination "gmcorrales won on time"]

1. e4 {[%clk 0:02:46.9]} 1... e5 {[%clk 0:02:53.3]} 2. Nf3 {[%clk 0:02:44.7]}
2... Nc6 {[%clk 0:02:53]} 3. Bb5 {[%clk 0:02:12.6]} 3... Nf6 {[%clk 0:02:49.6]}
4. Nc3 {[%clk 0:01:55.3]} 4... Bc5 {[%clk 0:02:36.8]} 5. O-O {[%clk 0:01:53.5]}
5... O-O {[%clk 0:02:33]} 6. Bxc6 {[%clk 0:01:41.4]} 6... dxc6 {[%clk
0:02:28.7]} 7. d3 {[%clk 0:01:42.1]} 7... Nd7 {[%clk 0:02:09.4]} 8. Be3 {[%clk
0:01:43]} 8... Re8 {[%clk 0:02:08.5]} 9. h3 {[%clk 0:01:39.6]} 9... f6 {[%clk
0:02:07.4]} 10. Ne2 {[%clk 0:01:38.6]} 10... Bf8 {[%clk 0:02:03.3]} 11. Nh2
{[%clk 0:01:27]} 11... Nc5 {[%clk 0:02:03]} 12. f4 {[%clk 0:01:26.3]} 12... Ne6
{[%clk 0:01:48.7]} 13. f5 {[%clk 0:01:25.7]} 13... Nd4 {[%clk 0:01:48.5]} 14.
Nxd4 {[%clk 0:01:23.8]} 14... exd4 {[%clk 0:01:49]} 15. Bd2 {[%clk 0:01:24.3]}
15... c5 {[%clk 0:01:49.3]} 16. b3 {[%clk 0:01:23.5]} 16... b5 {[%clk 0:01:45]}
17. a4 {[%clk 0:01:23.3]} 17... c6 {[%clk 0:01:41.3]} 18. Nf3 {[%clk 0:00:55.5]}
18... c4 {[%clk 0:01:40.9]} 19. Bf4 {[%clk 0:00:49.3]} 19... a5 {[%clk
0:01:20.6]} 20. Qd2 {[%clk 0:00:42.8]} 20... Bb4 {[%clk 0:01:16]} 21. Qf2 {[%clk
0:00:42]} 21... Ba6 {[%clk 0:01:03]} 22. Rad1 {[%clk 0:00:40.8]} 22... Bc5
{[%clk 0:00:55.2]} 23. Kh2 {[%clk 0:00:38.1]} 23... bxa4 {[%clk 0:00:51.4]} 24.
bxa4 {[%clk 0:00:37.6]} 24... c3 {[%clk 0:00:48.4]} 25. e5 {[%clk 0:00:35.9]}
25... fxe5 {[%clk 0:00:47.3]} 26. Nxe5 {[%clk 0:00:32.4]} 26... Qd5 {[%clk
0:00:44.8]} 27. Qg3 {[%clk 0:00:30.9]} 27... Kh8 {[%clk 0:00:32.5]} 28. Rde1
{[%clk 0:00:18.1]} 28... Rf8 {[%clk 0:00:28.6]} 29. Ng6+ {[%clk 0:00:16.6]}
29... hxg6 {[%clk 0:00:09.8]} 30. Qh4+ {[%clk 0:00:16.3]} 30... Kg8 {[%clk
0:00:10.4]} 31. fxg6 {[%clk 0:00:17.1]} 31... Rf6 {[%clk 0:00:10.9]} 32. Qh7+
{[%clk 0:00:16.1]} 32... Kf8 {[%clk 0:00:11.6]} 33. Bh6 {[%clk 0:00:12.2]} 33...
Bd6+ {[%clk 0:00:09.2]} 34. Kh1 {[%clk 0:00:11.2]} 34... Rxf1+ {[%clk
0:00:09.7]} 35. Rxf1+ {[%clk 0:00:12.1]} 35... Ke8 {[%clk 0:00:10.4]} 36. Qxg7
{[%clk 0:00:11.5]} 36... Kd8 {[%clk 0:00:04]} 37. Rf7 {[%clk 0:00:10.1]} 37...
Qe5 {[%clk 0:00:01.5]} 38. Bg5+ {[%clk 0:00:07.3]} 38... Kc8 {[%clk 0:00:01.8]}
39. Qg8+ {[%clk 0:00:07.3]} 1-0